[Event "Betsys MČR v online bleskovém šachu 2021"]
[Site "Chess.com"]
[Date "2021.04.17"]
[Round "6"]
[White "Chessillusion213"]
[Black "SajdlJosef"]
[Result "1-0"]
[WhiteElo "2173"]
[BlackElo "1863"]
[TimeControl "180+1"]
[EndTime "9:57:38 PDT"]
[Termination "Uživatel Chessillusion213 zvítězil na čas"]

1. d4 {[%clk 0:03:00.6]} 1... d5 {[%clk 0:02:57.5]} 2. c4 {[%clk 0:03:00.5]}
2... c6 {[%clk 0:02:56.5]} 3. Nf3 {[%clk 0:03:00.8]} 3... Nf6 {[%clk 0:02:55.1]}
4. e3 {[%clk 0:03:00.7]} 4... Bf5 {[%clk 0:02:54.2]} 5. Nc3 {[%clk 0:03:00.6]}
5... e6 {[%clk 0:02:53.2]} 6. Be2 {[%clk 0:02:57.5]} 6... h6 {[%clk 0:02:51.6]}
7. O-O {[%clk 0:02:55.9]} 7... Nbd7 {[%clk 0:02:49.4]} 8. b3 {[%clk 0:02:55.8]}
8... Bd6 {[%clk 0:02:46.6]} 9. Bb2 {[%clk 0:02:54.9]} 9... O-O {[%clk
0:02:45.2]} 10. Bd3 {[%clk 0:02:44.9]} 10... Ne4 {[%clk 0:02:30.1]} 11. Bxe4
{[%clk 0:02:30]} 11... dxe4 {[%clk 0:02:24.5]} 12. Nd2 {[%clk 0:02:29.9]} 12...
Nf6 {[%clk 0:02:22.3]} 13. Qc2 {[%clk 0:02:25.9]} 13... Rc8 {[%clk 0:01:59.3]}
14. Ndxe4 {[%clk 0:02:17.9]} 14... Nxe4 {[%clk 0:01:57.5]} 15. Nxe4 {[%clk
0:02:17.2]} 15... Bxh2+ {[%clk 0:01:49]} 16. Kxh2 {[%clk 0:02:11.5]} 16... Qh4+
{[%clk 0:01:46.1]} 17. Kg1 {[%clk 0:02:09.5]} 17... Qxe4 {[%clk 0:01:44.9]} 18.
Qxe4 {[%clk 0:02:04.6]} 18... Bxe4 {[%clk 0:01:43.5]} 19. f3 {[%clk 0:02:05]}
19... Bg6 {[%clk 0:01:39]} 20. e4 {[%clk 0:02:02.1]} 20... Rfd8 {[%clk
0:01:35.3]} 21. Kf2 {[%clk 0:01:53.6]} 21... f6 {[%clk 0:01:26.8]} 22. Rac1
{[%clk 0:01:47.3]} 22... Rd7 {[%clk 0:01:24.7]} 23. Rfd1 {[%clk 0:01:39.1]}
23... Kf7 {[%clk 0:01:19.2]} 24. g4 {[%clk 0:01:36.9]} 24... h5 {[%clk 0:01:14]}
25. gxh5 {[%clk 0:01:35.5]} 25... Bxh5 {[%clk 0:01:13.1]} 26. Rh1 {[%clk
0:01:35.7]} 26... Bg6 {[%clk 0:01:10.1]} 27. Rcg1 {[%clk 0:01:34.4]} 27... Rdd8
{[%clk 0:01:06.1]} 28. Rh2 {[%clk 0:01:27]} 28... Rg8 {[%clk 0:00:49.9]} 29.
Rhg2 {[%clk 0:01:09.5]} 29... Bh5 {[%clk 0:00:39.7]} 30. Ke3 {[%clk 0:01:06.5]}
30... g5 {[%clk 0:00:33.7]} 31. e5 {[%clk 0:01:01.3]} 31... fxe5 {[%clk
0:00:18.9]} 32. dxe5 {[%clk 0:01:01]} 32... Rcd8 {[%clk 0:00:13.4]} 33. Rxg5
{[%clk 0:00:59]} 33... Rxg5 {[%clk 0:00:12]} 34. Rxg5 {[%clk 0:00:58.6]} 34...
Bg6 {[%clk 0:00:12.1]} 35. Rg1 {[%clk 0:00:53]} 35... Rd3+ {[%clk 0:00:10.3]}
36. Ke2 {[%clk 0:00:48.6]} 36... Rd8 {[%clk 0:00:07.9]} 37. Rh1 {[%clk
0:00:43.4]} 37... Rg8 {[%clk 0:00:06.1]} 38. Rd1 {[%clk 0:00:40.4]} 38... Bf5
{[%clk 0:00:04.6]} 39. Kf2 {[%clk 0:00:37.4]} 39... Ke8 {[%clk 0:00:02.9]} 40.
Rh1 {[%clk 0:00:27.9]} 40... Rg7 {[%clk 0:00:01.8]} 41. Rh8+ {[%clk 0:00:27.3]}
41... Kd7 {[%clk 0:00:01.1]} 42. Rb8 {[%clk 0:00:26.3]} 1-0

[Event "Betsys MČR v online bleskovém šachu 2021"]
[Site "Chess.com"]
[Date "2021.04.17"]
[Round "6"]
[White "MartinHollan"]
[Black "Saygram"]
[Result "1-0"]
[WhiteElo "2599"]
[BlackElo "2412"]
[TimeControl "180+1"]
[EndTime "9:57:39 PDT"]
[Termination "Uživatel MartinHollan zvítězil po vzdání soupeře"]

1. e4 {[%clk 0:03:00.9]} 1... e5 {[%clk 0:02:59.6]} 2. Nf3 {[%clk 0:03:00.3]}
2... Nf6 {[%clk 0:03:00.1]} 3. d4 {[%clk 0:02:53.2]} 3... Nxe4 {[%clk 0:02:59]}
4. Nxe5 {[%clk 0:02:52.8]} 4... d5 {[%clk 0:02:58.2]} 5. Bd3 {[%clk 0:02:50.2]}
5... Nd7 {[%clk 0:02:57.9]} 6. O-O {[%clk 0:02:49.4]} 6... Nxe5 {[%clk
0:02:56.7]} 7. dxe5 {[%clk 0:02:49.7]} 7... Nc5 {[%clk 0:02:56.5]} 8. Be2 {[%clk
0:02:47.1]} 8... Be7 {[%clk 0:02:56.1]} 9. Be3 {[%clk 0:02:46.5]} 9... O-O
{[%clk 0:02:54.8]} 10. f4 {[%clk 0:02:45]} 10... Ne4 {[%clk 0:02:51.1]} 11. Nd2
{[%clk 0:02:44.3]} 11... Nxd2 {[%clk 0:02:50.5]} 12. Qxd2 {[%clk 0:02:44.2]}
12... c5 {[%clk 0:02:50.5]} 13. c3 {[%clk 0:02:44]} 13... f5 {[%clk 0:02:44.6]}
14. exf6 {[%clk 0:02:35.7]} 14... Bxf6 {[%clk 0:02:43.6]} 15. Bxc5 {[%clk
0:02:34.1]} 15... Re8 {[%clk 0:02:39.3]} 16. Bf3 {[%clk 0:02:33.3]} 16... Be6
{[%clk 0:02:36.9]} 17. Rfe1 {[%clk 0:02:33]} 17... Bf7 {[%clk 0:02:34.8]} 18.
Rxe8+ {[%clk 0:02:31]} 18... Qxe8 {[%clk 0:02:34.3]} 19. Bxd5 {[%clk 0:02:26.8]}
19... Rd8 {[%clk 0:02:34.4]} 20. Bxf7+ {[%clk 0:02:22.2]} 20... Qxf7 {[%clk
0:02:35.3]} 21. Qe2 {[%clk 0:02:19.4]} 21... b6 {[%clk 0:02:29.7]} 22. Bf2
{[%clk 0:02:15.5]} 22... Qd5 {[%clk 0:02:28.5]} 23. a3 {[%clk 0:02:07]} 23... h6
{[%clk 0:02:26.8]} 24. Re1 {[%clk 0:02:04.9]} 24... Kh8 {[%clk 0:02:25.2]} 25.
Kf1 {[%clk 0:01:56.9]} 25... Qb3 {[%clk 0:02:22.4]} 26. g4 {[%clk 0:01:44.8]}
26... Qd5 {[%clk 0:02:15]} 27. Qe4 {[%clk 0:01:42.4]} 27... Qb5+ {[%clk
0:02:14.4]} 28. Re2 {[%clk 0:01:37.3]} 28... Rd7 {[%clk 0:01:52.9]} 29. a4
{[%clk 0:01:27.5]} 29... Rd1+ {[%clk 0:01:39.2]} 30. Kg2 {[%clk 0:01:26.2]}
30... Qa5 {[%clk 0:01:25.6]} 31. h4 {[%clk 0:01:09.7]} 31... Qd5 {[%clk
0:00:33.6]} 32. Qxd5 {[%clk 0:01:07.4]} 32... Rxd5 {[%clk 0:00:34.5]} 33. g5
{[%clk 0:01:07.1]} 33... hxg5 {[%clk 0:00:34.8]} 34. hxg5 {[%clk 0:01:06.9]}
34... Bd8 {[%clk 0:00:35.2]} 35. Bd4 {[%clk 0:01:06.1]} 35... Kh7 {[%clk
0:00:31.4]} 36. Kf3 {[%clk 0:01:02.4]} 36... Kg6 {[%clk 0:00:28.8]} 37. Kg4
{[%clk 0:01:02]} 37... Kf7 {[%clk 0:00:24.4]} 38. f5 {[%clk 0:01:00.9]} 38...
Bc7 {[%clk 0:00:23.7]} 39. Re6 {[%clk 0:00:56.4]} 39... Rd7 {[%clk 0:00:19.4]}
40. Rc6 {[%clk 0:00:53.9]} 40... Bd6 {[%clk 0:00:18.3]} 41. Kf3 {[%clk
0:00:48.5]} 41... Be7 {[%clk 0:00:17.2]} 42. g6+ {[%clk 0:00:43.9]} 42... Ke8
{[%clk 0:00:17.2]} 43. Bxg7 {[%clk 0:00:41.3]} 43... Rd5 {[%clk 0:00:17]} 44.
Ke4 {[%clk 0:00:39.8]} 44... Rd1 {[%clk 0:00:15.7]} 45. Bd4 {[%clk 0:00:39.6]}
45... Kd7 {[%clk 0:00:15.6]} 46. g7 {[%clk 0:00:35]} 1-0

[Event "Betsys MČR v online bleskovém šachu 2021"]
[Site "Chess.com"]
[Date "2021.04.17"]
[Round "6"]
[White "veronikam"]
[Black "tiger196223"]
[Result "0-1"]
[WhiteElo "1490"]
[BlackElo "1835"]
[TimeControl "180+1"]
[EndTime "9:57:39 PDT"]
[Termination "Uživatel tiger196223 zvítězil na čas"]

1. e4 {[%clk 0:02:59.7]} 1... e6 {[%clk 0:02:59]} 2. d4 {[%clk 0:02:58.3]} 2...
d5 {[%clk 0:02:58.8]} 3. e5 {[%clk 0:02:57.4]} 3... c5 {[%clk 0:02:57.9]} 4. c3
{[%clk 0:02:56.5]} 4... Qb6 {[%clk 0:02:58.2]} 5. Nf3 {[%clk 0:02:54.3]} 5...
Bd7 {[%clk 0:02:58.5]} 6. Bd3 {[%clk 0:02:49.8]} 6... Bb5 {[%clk 0:02:58.3]} 7.
O-O {[%clk 0:02:47.4]} 7... Bxd3 {[%clk 0:02:57.5]} 8. Qxd3 {[%clk 0:02:46.4]}
8... cxd4 {[%clk 0:02:58]} 9. Nxd4 {[%clk 0:02:41.9]} 9... Ne7 {[%clk
0:02:56.9]} 10. Na3 {[%clk 0:02:34.6]} 10... Nec6 {[%clk 0:02:51.7]} 11. Nab5
{[%clk 0:02:20.4]} 11... a6 {[%clk 0:02:39.2]} 12. Nxc6 {[%clk 0:02:09.8]} 12...
Qxb5 {[%clk 0:02:08.2]} 13. Qxb5 {[%clk 0:02:08.5]} 13... axb5 {[%clk
0:02:07.7]} 14. Nxb8 {[%clk 0:02:06.3]} 14... Rxb8 {[%clk 0:02:07.1]} 15. Be3
{[%clk 0:02:05.8]} 15... b6 {[%clk 0:02:05.9]} 16. a4 {[%clk 0:02:00.4]} 16...
bxa4 {[%clk 0:01:56.6]} 17. Rxa4 {[%clk 0:01:59.4]} 17... Bc5 {[%clk 0:01:55.6]}
18. Re1 {[%clk 0:01:53.3]} 18... O-O {[%clk 0:01:47.2]} 19. Ra7 {[%clk
0:01:43.5]} 19... Rfc8 {[%clk 0:01:39]} 20. Rea1 {[%clk 0:01:36.2]} 20... Bxe3
{[%clk 0:01:31.3]} 21. fxe3 {[%clk 0:01:35.8]} 21... b5 {[%clk 0:01:21.4]} 22.
Kf2 {[%clk 0:01:33.2]} 22... b4 {[%clk 0:01:19.1]} 23. Rc1 {[%clk 0:01:20.9]}
23... bxc3 {[%clk 0:01:16.8]} 24. bxc3 {[%clk 0:01:20.7]} 24... Rb2+ {[%clk
0:01:12.9]} 25. Kf3 {[%clk 0:01:20.2]} 25... g6 {[%clk 0:01:12.2]} 26. Rd7
{[%clk 0:01:16.3]} 26... Rb3 {[%clk 0:01:09.1]} 27. e4 {[%clk 0:01:03.6]} 27...
dxe4+ {[%clk 0:01:06.1]} 28. Kxe4 {[%clk 0:01:01.4]} 28... Rbxc3 {[%clk
0:01:03.5]} 29. Rxc3 {[%clk 0:01:00.5]} 29... Rxc3 {[%clk 0:01:02.7]} 30. Rd8+
{[%clk 0:01:00]} 30... Kg7 {[%clk 0:01:02.2]} 31. Rd7 {[%clk 0:00:56.7]} 31...
Rc2 {[%clk 0:00:58.8]} 32. Kf3 {[%clk 0:00:54]} 32... Rc1 {[%clk 0:00:58.9]} 33.
h3 {[%clk 0:00:48.7]} 33... Rf1+ {[%clk 0:00:55.9]} 34. Ke2 {[%clk 0:00:45.7]}
34... Rg1 {[%clk 0:00:53.8]} 35. Kf2 {[%clk 0:00:43.1]} 35... Rc1 {[%clk
0:00:52.4]} 36. Kf3 {[%clk 0:00:41.3]} 36... h5 {[%clk 0:00:49.3]} 37. g4 {[%clk
0:00:31.8]} 37... Rc3+ {[%clk 0:00:47.7]} 38. Kf4 {[%clk 0:00:28.2]} 38... Rxh3
{[%clk 0:00:46.2]} 39. gxh5 {[%clk 0:00:25.4]} 39... Rxh5 {[%clk 0:00:45.5]} 40.
Ra7 {[%clk 0:00:21.8]} 40... Rf5+ {[%clk 0:00:42.2]} 41. Ke4 {[%clk 0:00:20.6]}
41... Rf1 {[%clk 0:00:41]} 42. Rc7 {[%clk 0:00:17.4]} 42... g5 {[%clk
0:00:39.9]} 43. Ke3 {[%clk 0:00:09.8]} 43... Kg6 {[%clk 0:00:38.5]} 44. Rc2
{[%clk 0:00:06]} 44... Kf5 {[%clk 0:00:34.7]} 0-1

[Event "Betsys MČR v online bleskovém šachu 2021"]
[Site "Chess.com"]
[Date "2021.04.17"]
[Round "6"]
[White "sodikus"]
[Black "krystofkrizek1"]
[Result "0-1"]
[WhiteElo "2290"]
[BlackElo "2142"]
[TimeControl "180+1"]
[EndTime "9:57:40 PDT"]
[Termination "Uživatel krystofkrizek1 zvítězil na čas"]

1. Nf3 {[%clk 0:03:00.9]} 1... Nf6 {[%clk 0:02:58.8]} 2. b3 {[%clk 0:02:58.7]}
2... b6 {[%clk 0:02:56.1]} 3. g3 {[%clk 0:02:57.6]} 3... Bb7 {[%clk 0:02:56.1]}
4. Bg2 {[%clk 0:02:57.8]} 4... e6 {[%clk 0:02:56.6]} 5. O-O {[%clk 0:02:57.4]}
5... Be7 {[%clk 0:02:56.1]} 6. Bb2 {[%clk 0:02:57.2]} 6... O-O {[%clk
0:02:56.2]} 7. c4 {[%clk 0:02:54.4]} 7... d6 {[%clk 0:02:56.1]} 8. d3 {[%clk
0:02:52.8]} 8... Nbd7 {[%clk 0:02:55.1]} 9. Nbd2 {[%clk 0:02:52.4]} 9... e5
{[%clk 0:02:54.1]} 10. e4 {[%clk 0:02:49.7]} 10... c5 {[%clk 0:02:39.1]} 11. Nh4
{[%clk 0:02:38.5]} 11... Nb8 {[%clk 0:02:15.7]} 12. Nf5 {[%clk 0:02:15]} 12...
Nc6 {[%clk 0:02:14.2]} 13. f4 {[%clk 0:02:13.5]} 13... Bc8 {[%clk 0:02:04.7]}
14. Qf3 {[%clk 0:01:51.5]} 14... Nd4 {[%clk 0:01:58.9]} 15. Bxd4 {[%clk
0:01:49.1]} 15... cxd4 {[%clk 0:01:59.3]} 16. g4 {[%clk 0:01:39.8]} 16... g6
{[%clk 0:01:39.2]} 17. Nxe7+ {[%clk 0:01:22.9]} 17... Qxe7 {[%clk 0:01:40.1]}
18. g5 {[%clk 0:00:37.8]} 18... Nd7 {[%clk 0:01:36.9]} 19. h4 {[%clk 0:00:33.2]}
19... Bb7 {[%clk 0:00:53.8]} 20. Bh3 {[%clk 0:00:25.4]} 20... f5 {[%clk
0:00:49.2]} 21. gxf6 {[%clk 0:00:20]} 21... Rxf6 {[%clk 0:00:46.7]} 22. Bxd7
{[%clk 0:00:19.1]} 22... Qxd7 {[%clk 0:00:44.5]} 23. Qg3 {[%clk 0:00:18.4]}
23... Qe7 {[%clk 0:00:34.6]} 24. fxe5 {[%clk 0:00:15.5]} 24... Rxf1+ {[%clk
0:00:32.9]} 25. Rxf1 {[%clk 0:00:14.8]} 25... dxe5 {[%clk 0:00:33.8]} 26. Nf3
{[%clk 0:00:14]} 26... Re8 {[%clk 0:00:30.4]} 27. Ng5 {[%clk 0:00:12.2]} 27...
Bc8 {[%clk 0:00:24.2]} 28. Rf7 {[%clk 0:00:11.2]} 28... Qd6 {[%clk 0:00:19.3]}
29. Rxh7 {[%clk 0:00:10.8]} 29... Rf8 {[%clk 0:00:19.6]} 30. Rxa7 {[%clk
0:00:10]} 30... Qf6 {[%clk 0:00:19]} 31. Qg2 {[%clk 0:00:05.8]} 31... Bg4 {[%clk
0:00:16.9]} 32. Nh3 {[%clk 0:00:03.2]} 32... Qxh4 {[%clk 0:00:10.1]} 33. Nf2
{[%clk 0:00:01.1]} 33... Bh5 {[%clk 0:00:06]} 0-1

[Event "Betsys MČR v online bleskovém šachu 2021"]
[Site "Chess.com"]
[Date "2021.04.17"]
[Round "6"]
[White "FormerProdigy"]
[Black "berny643"]
[Result "1-0"]
[WhiteElo "2862"]
[BlackElo "2560"]
[TimeControl "180+1"]
[EndTime "9:57:43 PDT"]
[Termination "Uživatel FormerProdigy zvítězil na čas"]

1. e4 {[%clk 0:03:00.9]} 1... d6 {[%clk 0:02:55.7]} 2. d4 {[%clk 0:03:00.3]}
2... Nf6 {[%clk 0:02:55.7]} 3. Nc3 {[%clk 0:03:00.6]} 3... g6 {[%clk 0:02:55.8]}
4. Be3 {[%clk 0:02:57.2]} 4... a6 {[%clk 0:02:55.3]} 5. Qd2 {[%clk 0:02:40.9]}
5... b5 {[%clk 0:02:50.6]} 6. f3 {[%clk 0:02:40.7]} 6... h5 {[%clk 0:02:41.6]}
7. Nh3 {[%clk 0:02:34]} 7... Bxh3 {[%clk 0:02:29.5]} 8. gxh3 {[%clk 0:02:34.9]}
8... Nbd7 {[%clk 0:02:25.9]} 9. Bd3 {[%clk 0:02:17.6]} 9... c6 {[%clk
0:02:23.5]} 10. f4 {[%clk 0:02:16]} 10... b4 {[%clk 0:01:46.6]} 11. Ne2 {[%clk
0:01:42]} 11... a5 {[%clk 0:01:45.4]} 12. e5 {[%clk 0:01:40.6]} 12... Nd5 {[%clk
0:01:44.9]} 13. e6 {[%clk 0:01:40.6]} 13... N7f6 {[%clk 0:01:44.5]} 14. exf7+
{[%clk 0:01:39.2]} 14... Kxf7 {[%clk 0:01:44.1]} 15. Rg1 {[%clk 0:01:34.4]}
15... Rg8 {[%clk 0:01:43.4]} 16. f5 {[%clk 0:01:33.5]} 16... gxf5 {[%clk
0:01:33.2]} 17. Rxg8 {[%clk 0:01:33.1]} 17... Kxg8 {[%clk 0:01:31.5]} 18. Bxf5
{[%clk 0:01:32.5]} 18... Bg7 {[%clk 0:00:43.3]} 19. O-O-O {[%clk 0:01:26.4]}
19... Kf7 {[%clk 0:00:41.9]} 20. Rg1 {[%clk 0:01:21.1]} 20... Qh8 {[%clk
0:00:41.2]} 21. Nf4 {[%clk 0:00:55.8]} 21... Nxe3 {[%clk 0:00:20.6]} 22. Qxe3
{[%clk 0:00:35.6]} 22... Bh6 {[%clk 0:00:19.8]} 23. Kd1 {[%clk 0:00:11.6]} 23...
Ke8 {[%clk 0:00:18.3]} 24. Qf3 {[%clk 0:00:09.7]} 24... Bxf4 {[%clk 0:00:16.3]}
25. Qxc6+ {[%clk 0:00:07.6]} 25... Kf7 {[%clk 0:00:16]} 26. Bg6+ {[%clk
0:00:07.5]} 26... Kg7 {[%clk 0:00:14.7]} 27. Bd3+ {[%clk 0:00:05.9]} 27... Kf7
{[%clk 0:00:14.6]} 28. Bc4+ {[%clk 0:00:05.1]} 28... d5 {[%clk 0:00:14.4]} 29.
Bxd5+ {[%clk 0:00:04.5]} 29... Nxd5 {[%clk 0:00:13.7]} 30. Qxd5+ {[%clk
0:00:05.2]} 30... Kf6 {[%clk 0:00:12.4]} 31. Rf1 {[%clk 0:00:04.4]} 31... e5
{[%clk 0:00:09.3]} 32. Qxe5+ {[%clk 0:00:03.7]} 32... Kg6 {[%clk 0:00:07.9]} 33.
Qxf4 {[%clk 0:00:03.7]} 33... Rd8 {[%clk 0:00:04.9]} 34. Rg1+ {[%clk 0:00:03.8]}
34... Kh7 {[%clk 0:00:03.8]} 35. Qf5+ {[%clk 0:00:04.7]} 1-0

[Event "Betsys MČR v online bleskovém šachu 2021"]
[Site "Chess.com"]
[Date "2021.04.17"]
[Round "6"]
[White "Soural_J"]
[Black "pedroholly22"]
[Result "1/2-1/2"]
[WhiteElo "2204"]
[BlackElo "2390"]
[TimeControl "180+1"]
[EndTime "9:57:43 PDT"]
[Termination "Remíza opakováním pozice"]

1. Nf3 {[%clk 0:03:00.9]} 1... b6 {[%clk 0:02:58.7]} 2. g3 {[%clk 0:03:00.2]}
2... Bb7 {[%clk 0:02:59.1]} 3. Bg2 {[%clk 0:03:00.7]} 3... g6 {[%clk 0:02:59.7]}
4. O-O {[%clk 0:02:57.7]} 4... Bg7 {[%clk 0:03:00.2]} 5. d4 {[%clk 0:02:57.6]}
5... Nf6 {[%clk 0:02:59.7]} 6. c4 {[%clk 0:02:57.1]} 6... O-O {[%clk 0:02:59.7]}
7. Nc3 {[%clk 0:02:56.9]} 7... d5 {[%clk 0:02:56.7]} 8. Ne5 {[%clk 0:02:51.2]}
8... e6 {[%clk 0:02:50.1]} 9. cxd5 {[%clk 0:02:41.2]} 9... Nxd5 {[%clk
0:02:47.6]} 10. Nxd5 {[%clk 0:02:30.1]} 10... Bxd5 {[%clk 0:02:47.1]} 11. e4
{[%clk 0:02:29.5]} 11... Bb7 {[%clk 0:02:46.6]} 12. Be3 {[%clk 0:02:20.5]} 12...
c5 {[%clk 0:02:41.1]} 13. Rc1 {[%clk 0:02:09.1]} 13... Na6 {[%clk 0:02:31.5]}
14. f4 {[%clk 0:02:03.8]} 14... Rc8 {[%clk 0:02:24.4]} 15. d5 {[%clk 0:01:59.7]}
15... exd5 {[%clk 0:02:17.6]} 16. exd5 {[%clk 0:01:59.6]} 16... Nb4 {[%clk
0:02:15]} 17. d6 {[%clk 0:01:55.8]} 17... Bxg2 {[%clk 0:02:14.1]} 18. Kxg2
{[%clk 0:01:55.7]} 18... Nc6 {[%clk 0:02:06.5]} 19. Qd5 {[%clk 0:01:46.7]} 19...
Nb4 {[%clk 0:01:58.8]} 20. Qd2 {[%clk 0:01:37.7]} 20... Kh8 {[%clk 0:01:29.1]}
21. a3 {[%clk 0:01:36.1]} 21... Nc6 {[%clk 0:01:27.8]} 22. Qd5 {[%clk
0:01:36.1]} 22... Nxe5 {[%clk 0:01:19.8]} 23. fxe5 {[%clk 0:01:35.8]} 23... Qd7
{[%clk 0:01:16.9]} 24. Bg5 {[%clk 0:01:27.6]} 24... Rce8 {[%clk 0:01:11.3]} 25.
Rce1 {[%clk 0:01:26.2]} 25... Re6 {[%clk 0:01:06.8]} 26. Rf2 {[%clk 0:01:13.9]}
26... Rfe8 {[%clk 0:01:06]} 27. Rfe2 {[%clk 0:01:12.8]} 27... f6 {[%clk
0:00:57.5]} 28. Bf4 {[%clk 0:00:56.7]} 28... fxe5 {[%clk 0:00:56.5]} 29. Bxe5
{[%clk 0:00:52.5]} 29... Bxe5 {[%clk 0:00:21.2]} 30. Rxe5 {[%clk 0:00:51.8]}
30... Rxe5 {[%clk 0:00:19.9]} 31. Rxe5 {[%clk 0:00:51.7]} 31... Rxe5 {[%clk
0:00:12]} 32. Qxe5+ {[%clk 0:00:51.4]} 32... Kg8 {[%clk 0:00:12.5]} 33. Qf6
{[%clk 0:00:42.8]} 33... Qf7 {[%clk 0:00:09.8]} 34. Qd8+ {[%clk 0:00:37.7]}
34... Kg7 {[%clk 0:00:10]} 35. Qc7 {[%clk 0:00:36.3]} 35... Kf6 {[%clk
0:00:08.4]} 36. d7 {[%clk 0:00:31]} 36... Qd5+ {[%clk 0:00:07.7]} 37. Kf2 {[%clk
0:00:21.1]} 37... Qd2+ {[%clk 0:00:06.9]} 38. Kf3 {[%clk 0:00:20.8]} 38... Qd3+
{[%clk 0:00:06.6]} 39. Kf2 {[%clk 0:00:16.7]} 39... Qd2+ {[%clk 0:00:06.4]} 40.
Kf3 {[%clk 0:00:15.3]} 40... Qd3+ {[%clk 0:00:05.7]} 41. Kf2 {[%clk 0:00:15.4]}
41... Qd2+ {[%clk 0:00:05.8]} 1/2-1/2

[Event "Betsys MČR v online bleskovém šachu 2021"]
[Site "Chess.com"]
[Date "2021.04.17"]
[Round "6"]
[White "Pantata007"]
[Black "MartinCerveny"]
[Result "0-1"]
[WhiteElo "2271"]
[BlackElo "2655"]
[TimeControl "180+1"]
[EndTime "9:57:44 PDT"]
[Termination "Uživatel MartinCerveny zvítězil po vzdání soupeře"]

1. d4 {[%clk 0:03:00.9]} 1... d5 {[%clk 0:02:59.7]} 2. c4 {[%clk 0:03:00.7]}
2... c6 {[%clk 0:03:00]} 3. Nc3 {[%clk 0:03:00.5]} 3... Nf6 {[%clk 0:03:00.2]}
4. e3 {[%clk 0:03:00.4]} 4... a6 {[%clk 0:02:58.7]} 5. Qc2 {[%clk 0:02:59.7]}
5... g6 {[%clk 0:02:57.7]} 6. Bd3 {[%clk 0:02:59]} 6... Bg7 {[%clk 0:02:57.9]}
7. Nf3 {[%clk 0:02:59.3]} 7... O-O {[%clk 0:02:57.9]} 8. O-O {[%clk 0:02:59.6]}
8... b5 {[%clk 0:02:52]} 9. b3 {[%clk 0:02:58.5]} 9... Bb7 {[%clk 0:02:48.6]}
10. Bb2 {[%clk 0:02:56.6]} 10... Nbd7 {[%clk 0:02:46.8]} 11. Rad1 {[%clk
0:02:55.8]} 11... e6 {[%clk 0:02:43.6]} 12. h3 {[%clk 0:02:52.7]} 12... Rc8
{[%clk 0:02:40.6]} 13. Qe2 {[%clk 0:02:37.1]} 13... Qa5 {[%clk 0:02:34.6]} 14.
a3 {[%clk 0:02:18.7]} 14... bxc4 {[%clk 0:02:34.3]} 15. bxc4 {[%clk 0:02:18.1]}
15... c5 {[%clk 0:02:34.5]} 16. cxd5 {[%clk 0:02:12.2]} 16... Nxd5 {[%clk
0:02:22.6]} 17. Nxd5 {[%clk 0:02:11.1]} 17... Bxd5 {[%clk 0:02:21.8]} 18. Bc4
{[%clk 0:01:50.5]} 18... Bxf3 {[%clk 0:01:51.5]} 19. Qxf3 {[%clk 0:01:43.2]}
19... cxd4 {[%clk 0:01:51.1]} 20. Qe2 {[%clk 0:01:30.3]} 20... Nb6 {[%clk
0:01:26]} 21. Bxa6 {[%clk 0:01:28.4]} 21... Ra8 {[%clk 0:01:15.5]} 22. Bd3
{[%clk 0:01:07.7]} 22... dxe3 {[%clk 0:01:10.1]} 23. fxe3 {[%clk 0:01:07.1]}
23... Bxb2 {[%clk 0:01:03.8]} 24. Qxb2 {[%clk 0:01:06.4]} 24... Nd5 {[%clk
0:01:02.6]} 25. Qf2 {[%clk 0:00:55.6]} 25... Qxa3 {[%clk 0:01:00.5]} 26. Be4
{[%clk 0:00:50.8]} 26... Qxe3 {[%clk 0:00:38.7]} 27. Bxd5 {[%clk 0:00:44.8]}
27... Qxf2+ {[%clk 0:00:38.7]} 28. Rxf2 {[%clk 0:00:45.6]} 28... exd5 {[%clk
0:00:38.8]} 29. Rxd5 {[%clk 0:00:45.3]} 29... Rad8 {[%clk 0:00:39.2]} 30. Rxd8
{[%clk 0:00:42.8]} 30... Rxd8 {[%clk 0:00:38.7]} 31. g4 {[%clk 0:00:40.6]} 31...
Kg7 {[%clk 0:00:38.1]} 32. Kg2 {[%clk 0:00:40.9]} 32... Rd3 {[%clk 0:00:37.1]}
33. Ra2 {[%clk 0:00:39.3]} 33... Kf6 {[%clk 0:00:30.2]} 34. h4 {[%clk
0:00:36.2]} 34... h6 {[%clk 0:00:27]} 35. Ra6+ {[%clk 0:00:34.5]} 35... Ke5
{[%clk 0:00:25.9]} 36. Ra5+ {[%clk 0:00:24.6]} 36... Rd5 {[%clk 0:00:24.9]} 37.
Ra4 {[%clk 0:00:24.1]} 37... Rd4 {[%clk 0:00:24.7]} 38. Ra5+ {[%clk 0:00:23.5]}
38... Kf4 {[%clk 0:00:24.6]} 39. g5 {[%clk 0:00:13.3]} 39... hxg5 {[%clk
0:00:24.6]} 40. hxg5 {[%clk 0:00:12.8]} 40... Kg4 {[%clk 0:00:24.7]} 41. Rb5
{[%clk 0:00:07.6]} 41... Rf4 {[%clk 0:00:24.5]} 42. Rb7 {[%clk 0:00:02.4]} 42...
Kxg5 {[%clk 0:00:23.6]} 0-1